bitfinex/quotes_BTCUSD_20250212
["timestamp","ask_amount","ask_price","bid_price","bid_amount"]
[1739388606383,0.154768,96920.0,96909.0,0.0831]
[1739388606782,0.154768,96920.0,96910.0,0.0831]
[1739388607006,0.00018831,96921.0,96910.0,0.0831]
[1739388607212,0.154768,96919.0,96910.0,0.0831]
[1739388607429,0.00018831,96921.0,96910.0,0.0831]
[1739388607784,0.154781,96911.0,96910.0,0.0831]
[1739388608625,0.154774,96915.0,96910.0,0.0831]
[1739388608829,0.10250365,96918.0,96910.0,0.0831]
[1739388609036,0.206364,96916.0,96910.0,0.0841]
[1739388609166,0.001,96911.0,96910.0,0.0841]
[1739388609369,0.155781,96911.0,96910.0,0.0841]
[1739388609595,0.155781,96911.0,96910.0,0.0831]
[1739388609789,0.001,96911.0,96910.0,0.0831]
[1739388609995,0.001,96911.0,96890.0,0.14384564]
[1739388609996,0.10350365,96911.0,96899.0,0.0757]
[1739388610202,0.24634929,96910.0,96879.0,0.1254]
[1739388610432,0.24634929,96910.0,96881.0,0.023]
[1739388610634,0.154811,96892.0,96883.0,0.023]
[1739388611412,0.154808,96894.0,96883.0,0.023]
[1739388611632,0.154797,96901.0,96889.0,0.15]
[1739388611829,0.154795,96903.0,96885.0,0.023]
[1739388612269,0.001,96892.0,96884.0,0.023]
[1739388612469,0.001,96892.0,96887.0,0.023]
[1739388612879,0.001,96892.0,96889.0,0.003]
[1739388613103,0.001,96892.0,96887.0,0.023]
[1739388613464,0.001,96892.0,96888.0,0.173]
[1739388613631,0.206379,96909.0,96888.0,0.173]
[1739388613840,0.154801,96899.0,96888.0,0.173]
[1739388614039,0.154802,96898.0,96888.0,0.173]
[1739388614732,0.154802,96898.0,96888.0,0.004]
[1739388614947,0.154796,96902.0,96890.0,0.15]
[1739388615366,0.206385,96906.0,96890.0,0.304814]
[1739388615570,0.154794,96903.0,96890.0,0.304814]
[1739388615947,0.154794,96903.0,96891.0,0.235312]
[1739388616379,0.10250365,96905.0,96891.0,0.0805]
[1739388616582,0.154795,96902.0,96891.0,0.0805]
[1739388616786,0.154792,96904.0,96891.0,0.0805]
[1739388616999,0.003,96902.0,96892.0,0.023]
[1739388617170,0.003,96902.0,96893.0,0.00103192]
[1739388617421,0.001,96906.0,96894.0,0.154807]
[1739388617595,0.001,96906.0,96895.0,0.154806]
[1739388617752,0.003,96902.0,96895.0,0.154806]
[1739388618158,0.154787,96907.0,96895.0,0.154806]
[1739388618353,0.154785,96909.0,96892.0,0.0723]
[1739388618559,0.005,96906.0,96898.0,0.154801]
[1739388618991,0.005,96906.0,96899.0,0.1548]
[1739388619367,0.005,96906.0,96893.0,0.023]
[1739388619570,0.154793,96904.0,96893.0,0.023]
[1739388620778,0.155793,96904.0,96893.0,0.023]
[1739388621519,0.001,96904.0,96894.0,0.154807]
[1739388621719,0.001,96904.0,96893.0,0.023]
[1739388622415,0.001,96904.0,96898.0,0.023]
[1739388622790,0.154784,96909.0,96898.0,0.023]
[1739388623148,0.001,96904.0,96898.0,0.023]
[1739388623356,0.001,96904.0,96895.0,0.177805]
[1739388623558,0.00022387,96911.0,96893.0,0.001]
[1739388623736,0.206377,96910.0,96893.0,0.001]
[1739388623934,0.005,96909.0,96893.0,0.024]
[1739388624158,0.154798,96901.0,96893.0,0.023]
[1739388624357,0.1548,96899.0,96898.0,0.001]
[1739388624604,0.206397,96901.0,96880.0,0.0488]
[1739388624779,0.154814,96890.0,96885.0,0.0773066]
[1739388624967,0.154814,96890.0,96886.0,0.0001066]
[1739388625708,0.20641,96895.0,96886.0,0.0001066]
[1739388625709,0.154819,96887.0,96886.0,0.0001066]
[1739388626138,0.154819,96887.0,96886.0,0.00023877]
[1739388626343,0.25732265,96887.0,96886.0,0.00023877]
[1739388627159,0.25832265,96887.0,96886.0,0.01123877]
[1739388627705,0.25732265,96887.0,96886.0,0.00623877]
[1739388627909,0.25732265,96887.0,96886.0,0.00023877]
[1739388629967,0.25732265,96887.0,96886.0,0.00723877]
[1739388633519,0.25732265,96887.0,96886.0,0.00323877]
[1739388633889,0.25732265,96887.0,96886.0,0.00823877]
[1739388634094,0.25732265,96887.0,96886.0,0.00523877]
[1739388634449,0.25732265,96887.0,96886.0,0.00823877]
[1739388637318,0.25754652,96887.0,96886.0,0.00823877]
[1739388639241,0.2693247,96887.0,96886.0,0.00823877]
[1739388643443,0.25754652,96887.0,96886.0,0.00823877]
[1739388647794,0.00022387,96887.0,96886.0,0.00823877]
[1739388647971,0.00022387,96887.0,96886.0,0.08833877]
[1739388649214,0.00022387,96887.0,96886.0,0.24315977]
[1739388650053,0.00022387,96887.0,96886.0,0.08833877]
[1739388650237,0.154808,96894.0,96886.0,0.08833877]
[1739388650445,0.154806,96896.0,96886.0,0.08833877]
[1739388650650,0.154807,96895.0,96886.0,0.08833877]
[1739388650842,0.25730865,96896.0,96886.0,0.08833877]
[1739388651070,0.25730865,96896.0,96886.0,0.08533877]
[1739388651497,0.25730865,96896.0,96887.0,0.00144]
[1739388651701,0.10250365,96896.0,96887.0,0.00144]
[1739388652188,0.154817,96888.0,96887.0,0.00144]
[1739388652393,0.25732065,96888.0,96887.0,0.00144]
[1739388654890,0.10250365,96888.0,96887.0,0.00344]
[1739388655105,0.2064,96899.0,96887.0,0.00744]
[1739388655319,0.154808,96894.0,96887.0,0.00744]
[1739388655529,0.25731165,96894.0,96887.0,0.00744]
[1739388655907,0.04226376,96904.0,96887.0,0.00744]
[1739388656139,0.10250365,96903.0,96890.0,0.08]
[1739388656346,0.004,96899.0,96892.0,0.154811]
[1739388656945,0.004,96899.0,96890.0,0.08]
[1739388656946,0.004,96899.0,96895.0,0.154806]
[1739388657232,0.005,96899.0,96894.0,0.154808]
[1739388657380,0.005,96899.0,96891.0,0.154813]
[1739388657581,0.04226376,96904.0,96890.0,0.08]
[1739388658032,0.05026376,96904.0,96890.0,0.08]
[1739388658412,0.04226376,96904.0,96894.0,0.001]
[1739388658568,0.04226376,96904.0,96890.0,0.081]
[1739388658779,0.1548,96899.0,96890.0,0.081]
[1739388659210,0.154802,96898.0,96890.0,0.08]
[1739388659549,0.154805,96896.0,96890.0,0.081]
[1739388659688,0.154808,96894.0,96890.0,0.081]
[1739388659894,0.206404,96897.0,96890.0,0.081]
[1739388659895,0.154811,96893.0,96890.0,0.081]
[1739388660093,0.154813,96891.0,96890.0,0.001]
[1739388660520,0.05026376,96904.0,96892.0,0.0491]
[1739388660720,0.04226376,96904.0,96903.0,0.154793]
[1739388660994,0.00022387,96904.0,96903.0,0.382693]
[1739388661716,0.00222387,96904.0,96903.0,0.382693]
[1739388663146,0.00022387,96904.0,96903.0,0.405693]
[1739388663586,0.00022387,96904.0,96903.0,0.408693]
[1739388664399,0.00022387,96904.0,96903.0,0.2349]
[1739388664605,0.00022387,96904.0,96903.0,0.389693]
[1739388669214,0.00022387,96904.0,96903.0,0.239693]
[1739388671354,0.00022387,96904.0,96903.0,0.458893]
[1739388671634,0.00022387,96904.0,96903.0,0.56139665]
[1739388672572,0.00022387,96904.0,96903.0,0.55739665]
[1739388672747,0.00022387,96904.0,96903.0,0.55439665]
[1739388673096,0.00022387,96904.0,96903.0,0.56139665]
[1739388673706,0.00122387,96904.0,96903.0,0.57639665]
[1739388673921,0.00122387,96904.0,96903.0,0.56939665]
[1739388674121,0.00022387,96904.0,96903.0,0.56139665]
[1739388674530,0.00122387,96904.0,96903.0,0.57639665]
[1739388678052,0.00122387,96904.0,96903.0,1.67988465]
[1739388678283,0.00122387,96904.0,96903.0,1.54080165]
[1739388678639,0.00022387,96904.0,96903.0,1.52580165]
[1739388678774,0.00122387,96904.0,96903.0,1.54080165]
[1739388679742,0.00122387,96904.0,96903.0,1.53380165]
[1739388680223,0.00022387,96904.0,96903.0,1.51880165]
[1739388680586,0.00022387,96904.0,96903.0,1.32610965]
[1739388680803,0.00022387,96904.0,96903.0,1.42851665]
[1739388681764,0.00022387,96904.0,96903.0,1.44051665]
[1739388682569,0.15,96979.0,96922.0,0.023]
[1739388682750,0.154738,96938.0,96929.0,0.15]
[1739388682969,0.154738,96938.0,96920.0,0.14384564]
[1739388682970,0.0825,96938.0,96918.0,0.154768]
[1739388683173,0.154755,96927.0,96910.0,0.14384564]
[1739388683373,0.154755,96927.0,96916.0,0.15]
[1739388683572,0.15475,96931.0,96918.0,0.15]
[1739388684187,0.154751,96930.0,96918.0,0.15]
[1739388684735,0.0825,96938.0,96918.0,0.006]
[1739388685095,0.0476,96939.0,96923.0,0.15]
[1739388685244,0.15010365,96939.0,96926.0,0.154756]
[1739388685458,0.15010365,96939.0,96927.0,0.154755]
[1739388685655,0.206302,96945.0,96922.0,0.206351]
[1739388685656,0.08302366,96951.0,96929.0,0.14384564]
[1739388686010,0.154723,96947.0,96933.0,0.154744]
[1739388686295,0.10250365,96946.0,96936.0,0.154741]
[1739388686498,0.154733,96941.0,96930.0,0.154749]
[1739388686728,0.10250365,96946.0,96927.0,0.154754]
[1739388686870,0.154738,96938.0,96927.0,0.154754]
[1739388687212,0.15474,96937.0,96925.0,0.154757]
[1739388687418,0.10250365,96946.0,96929.0,0.154752]
[1739388687720,0.0077002,96945.0,96929.0,0.001]
[1739388687935,0.11020385,96945.0,96929.0,0.001]
[1739388688174,0.11020385,96945.0,96935.0,0.154742]
[1739388688377,0.0077002,96945.0,96938.0,0.154737]
[1739388688527,0.0077002,96945.0,96939.0,0.154734]
[1739388689281,0.0077002,96944.0,96940.0,0.154734]
[1739388689483,0.0077002,96944.0,96921.0,0.173]
[1739388689844,0.0077002,96944.0,96924.0,0.023]
[1739388690266,0.0077002,96944.0,96922.0,0.023]
[1739388690767,0.0077002,96944.0,96916.0,0.203213]
[1739388690768,0.154752,96930.0,96918.0,0.154769]
[1739388690965,0.154752,96930.0,96916.0,0.54551949]
[1739388691474,0.154752,96930.0,96917.0,0.15]
[1739388691674,0.02090296,96933.0,96917.0,0.15]
[1739388691969,0.154759,96925.0,96917.0,0.15]
[1739388692326,0.154757,96926.0,96917.0,0.15]
[1739388692530,0.206335,96930.0,96917.0,0.15]
[1739388692744,0.154758,96926.0,96917.0,0.15]
[1739388692944,0.154757,96926.0,96917.0,0.15]
[1739388693139,0.0077002,96924.0,96917.0,0.15]
[1739388693983,0.0077002,96924.0,96917.0,0.01]
[1739388694178,0.154768,96919.0,96917.0,0.005]
[1739388694390,0.0077002,96924.0,96917.0,0.005]
[1739388694391,0.15477,96918.0,96917.0,0.005]
[1739388694569,0.15477,96918.0,96917.0,0.01022365]
[1739388694769,0.15477,96918.0,96917.0,0.00522365]
[1739388695785,0.15477,96918.0,96917.0,0.00022365]
[1739388696171,0.15477,96918.0,96917.0,0.00322365]
[1739388696367,0.15477,96918.0,96917.0,0.00022365]
[1739388696684,0.0077002,96923.0,96917.0,0.00522365]
[1739388696951,0.0077002,96918.0,96917.0,0.00522365]
[1739388697113,0.0077002,96918.0,96917.0,0.01322365]
[1739388697487,0.0077002,96918.0,96917.0,0.00522365]
[1739388697920,0.0077002,96918.0,96917.0,0.00022365]
[1739388698124,0.0077002,96918.0,96917.0,0.00322365]
[1739388698743,0.0077002,96918.0,96917.0,0.00022365]
[1739388698978,0.0077002,96918.0,96917.0,0.00722365]
[1739388699148,0.0077002,96918.0,96917.0,0.01222365]
[1739388701838,0.1624702,96918.0,96917.0,0.01222365]
[1739388704019,0.0077002,96918.0,96917.0,0.01222365]
[1739388704217,0.0077002,96918.0,96917.0,0.16699465]
[1739388704974,0.0077002,96918.0,96917.0,0.39269465]
[1739388705153,0.0077002,96918.0,96917.0,0.41569465]
[1739388705359,0.0001065,96942.0,96918.0,0.173]
[1739388705505,0.361044,96941.0,96926.0,0.154755]
[1739388705719,0.154744,96935.0,96927.0,0.154755]
[1739388705977,0.154744,96934.0,96927.0,0.154755]
[1739388706190,0.154746,96933.0,96926.0,0.154757]
[1739388706365,0.0001065,96942.0,96920.0,0.15]
[1739388706570,0.154751,96930.0,96923.0,0.154761]
[1739388706781,0.206311,96941.0,96920.0,0.15]
[1739388706926,0.154747,96932.0,96924.0,0.154758]
[1739388707383,0.21402685,96941.0,96924.0,0.154758]
[1739388707589,0.154749,96931.0,96924.0,0.154758]
[1739388708663,0.00771585,96930.0,96924.0,0.154758]
[1739388708864,0.154752,96929.0,96921.0,0.304763]
[1739388709110,0.00771585,96930.0,96922.0,0.154763]
[1739388709487,0.16246785,96930.0,96922.0,0.154763]
[1739388709917,0.154752,96929.0,96924.0,0.001]
[1739388710298,0.00771585,96929.0,96923.0,0.154761]
[1739388710502,0.00771585,96929.0,96923.0,0.154762]
[1739388710903,0.00771585,96929.0,96917.0,0.07592365]
[1739388711099,0.00771585,96929.0,96918.0,0.023]
[1739388711320,0.00771585,96929.0,96928.0,0.154754]
[1739388712129,0.206282,96955.0,96926.0,0.206342]
[1739388712341,0.154728,96945.0,96937.0,0.154739]
[1739388712553,0.206301,96946.0,96937.0,0.154739]
[1739388712891,0.206301,96946.0,96927.0,0.15]
[1739388712892,0.3459943,96951.0,96927.0,0.15]
[1739388713220,0.154739,96937.0,96929.0,0.154751]
[1739388713417,0.16245096,96941.0,96933.0,0.154746]
[1739388713620,0.00771796,96941.0,96928.0,0.206338]
[1739388713835,0.00771796,96941.0,96931.0,0.154747]
[1739388714215,0.21402996,96941.0,96929.0,0.356334]
[1739388714420,0.154736,96939.0,96931.0,0.154748]
[1739388714630,0.154736,96939.0,96933.0,0.154744]
[1739388714815,0.00771796,96941.0,96930.0,0.15]
[1739388715141,0.154742,96936.0,96930.0,0.30475]
[1739388715348,0.00771796,96938.0,96930.0,0.15]
[1739388715560,0.154739,96937.0,96931.0,0.154747]
[1739388715759,0.154739,96937.0,96931.0,0.154748]
[1739388715876,0.00771796,96938.0,96923.0,0.206349]
[1739388716081,0.00771796,96938.0,96924.0,0.15]
[1739388716392,0.00771796,96938.0,96933.0,0.154744]
[1739388716592,0.00771796,96938.0,96923.0,0.206349]
[1739388716822,0.00771796,96937.0,96933.0,0.154745]
[1739388717018,0.00771796,96937.0,96936.0,0.154741]
[1739388717333,0.00771796,96937.0,96935.0,0.154742]
[1739388718087,0.00771796,96937.0,96936.0,0.154741]
[1739388718692,0.00771796,96937.0,96931.0,0.20633]
[1739388718693,0.0001065,96942.0,96925.0,0.206345]
[1739388718897,0.0001065,96942.0,96941.0,0.154733]
[1739388719291,0.0001065,96942.0,96936.0,0.002]
[1739388719544,0.0001065,96942.0,96938.0,0.154736]
[1739388719964,0.0001065,96942.0,96939.0,0.154736]
[1739388720696,0.0001065,96942.0,96924.0,0.00022365]
[1739388720896,0.154738,96938.0,96931.0,0.154748]
[1739388721680,0.00771899,96941.0,96930.0,0.30475]
[1739388721858,0.154739,96937.0,96930.0,0.15]
[1739388722062,0.154739,96937.0,96930.0,0.30475]
[1739388722539,0.154741,96936.0,96930.0,0.30475]
[1739388722738,0.00771899,96941.0,96930.0,0.15]
[1739388723013,0.154752,96929.0,96924.0,0.15498265]
[1739388723312,0.15475,96930.0,96925.0,0.15]
[1739388723660,0.206328,96933.0,96925.0,0.15]
[1739388723918,0.21403199,96940.0,96924.0,0.00022365]
[1739388724120,0.154758,96925.0,96924.0,0.00022365]
[1739388724481,0.154755,96927.0,96924.0,0.00022365]
[1739388724683,0.154758,96925.0,96924.0,0.00022365]
[1739388725005,0.206342,96927.0,96924.0,0.00022365]
[1739388725206,0.154757,96927.0,96924.0,0.00022365]
[1739388725470,0.154758,96925.0,96924.0,0.00022365]
[1739388725672,0.206338,96928.0,96924.0,0.00022365]
[1739388725873,0.16247199,96929.0,96925.0,0.001]
[1739388726004,0.00771899,96926.0,96924.0,0.00022365]
[1739388726211,0.00771899,96926.0,96924.0,0.00222365]
[1739388726416,0.00771899,96926.0,96924.0,0.00422365]
[1739388726615,0.00771899,96926.0,96924.0,0.00222365]
[1739388726825,0.16247599,96926.0,96924.0,0.00222365]
[1739388727427,0.16247599,96926.0,96924.0,0.00422365]
[1739388727634,0.00771899,96925.0,96924.0,0.00222365]
[1739388727799,0.16247699,96925.0,96924.0,0.00222365]
[1739388729018,0.34608064,96925.0,96924.0,0.00022365]
[1739388729230,0.34608064,96925.0,96924.0,0.00122365]
[1739388729447,0.34608064,96925.0,96924.0,0.00022365]
[1739388729803,0.34608064,96925.0,96924.0,0.00122365]
[1739388735593,0.26498064,96925.0,96924.0,0.00122365]
[1739388739243,0.00771899,96925.0,96924.0,0.00122365]
[1739388739570,0.00771899,96925.0,96924.0,0.15598365]
[1739388739772,0.00771899,96925.0,96924.0,0.07642365]
[1739388739915,0.00771899,96925.0,96924.0,0.00122365]
[1739388741655,0.16247699,96925.0,96924.0,0.00222365]
[1739388742056,0.16247699,96925.0,96924.0,0.00122365]
[1739388742259,0.16247699,96925.0,96924.0,0.00022365]
[1739388742641,0.16247699,96925.0,96924.0,0.00122365]
[1739388742816,0.16247699,96925.0,96924.0,0.00022365]
[1739388746540,0.00771899,96925.0,96924.0,0.15498365]
[1739388746744,0.00771899,96925.0,96924.0,0.15598365]
[1739388748654,0.00771899,96925.0,96924.0,0.30498365]
[1739388748854,0.00771899,96925.0,96924.0,0.30798365]
[1739388748992,0.00771899,96925.0,96924.0,0.30698365]
[1739388749358,0.00771899,96925.0,96924.0,0.30798365]
[1739388749534,0.00771899,96925.0,96924.0,0.31198365]
[1739388750507,0.154739,96937.0,96929.0,0.154752]
[1739388750766,0.154741,96937.0,96929.0,0.154752]
[1739388750964,0.00771899,96940.0,96924.0,0.00722365]
[1739388751242,0.00771899,96940.0,96937.0,0.08267153]
[1739388751493,0.00771899,96940.0,96939.0,0.201436]
[1739388752564,0.00771899,96940.0,96939.0,0.205436]
[1739388752788,0.00771899,96941.0,96940.0,0.154734]
[1739388754712,0.0001065,96942.0,96939.0,0.0467]
[1739388754913,0.0001065,96942.0,96941.0,0.154733]
[1739388755923,0.0001065,96942.0,96941.0,0.159733]
[1739388756279,0.0001065,96942.0,96941.0,0.009]
[1739388757329,0.0001065,96942.0,96941.0,0.163733]
[1739388757706,0.0001065,96942.0,96941.0,0.154733]
[1739388758030,0.0001065,96942.0,96941.0,0.156733]
[1739388758296,0.0001065,96942.0,96941.0,0.157733]
[1739388758513,0.0001065,96942.0,96941.0,0.155733]
[1739388758688,0.0001065,96942.0,96941.0,0.156733]
[1739388758841,0.0001065,96942.0,96941.0,0.232833]
[1739388759250,0.0001065,96942.0,96941.0,0.235833]
[1739388759476,0.0001065,96942.0,96941.0,0.233833]
[1739388759666,0.0001065,96942.0,96941.0,0.237833]
[1739388760933,0.0001065,96942.0,96941.0,0.232833]
[1739388761135,0.0001065,96942.0,96941.0,0.236833]
[1739388761340,0.0001065,96942.0,96941.0,0.241833]
[1739388761540,0.0001065,96942.0,96941.0,0.237833]
[1739388761789,0.0001065,96942.0,96941.0,0.241833]
[1739388762130,0.0001065,96942.0,96941.0,0.236833]
[1739388762332,0.0001065,96942.0,96941.0,0.242833]
[1739388762506,0.0001065,96942.0,96941.0,0.238833]
[1739388762734,0.0001065,96942.0,96941.0,0.232833]
[1739388762909,0.0001065,96942.0,96941.0,0.240833]
[1739388764128,0.0001065,96942.0,96941.0,0.237833]
[1739388764972,0.0001065,96942.0,96941.0,0.235833]
[1739388765370,0.0001065,96942.0,96941.0,0.240833]
[1739388765569,0.0001065,96942.0,96941.0,0.237833]
[1739388766443,0.0001065,96942.0,96941.0,0.241833]
[1739388767190,0.0001065,96942.0,96941.0,0.236833]
[1739388767595,0.0001065,96942.0,96941.0,0.243833]
[1739388767814,0.0001065,96942.0,96941.0,0.239833]
[1739388767981,0.0001065,96942.0,96941.0,0.244833]
[1739388768962,0.0001065,96942.0,96941.0,0.237833]
[1739388769300,0.0001065,96942.0,96941.0,0.232833]
[1739388769732,0.0001065,96942.0,96941.0,0.235833]
[1739388770344,0.0001065,96942.0,96941.0,0.239833]
[1739388770345,0.00781978,96942.0,96941.0,0.239833]
[1739388770827,0.00781978,96942.0,96941.0,0.161733]
[1739388771368,0.00781978,96942.0,96941.0,0.154733]
[1739388771948,0.00781978,96942.0,96941.0,0.156733]
[1739388772518,0.00781978,96942.0,96941.0,0.154733]
[1739388772722,0.00781978,96942.0,96940.0,0.154734]
[1739388772925,0.00781978,96942.0,96941.0,0.002]
[1739388774221,0.00781978,96942.0,96939.0,0.154736]
[1739388774461,0.00781978,96942.0,96940.0,0.002]
[1739388774667,0.00781978,96942.0,96939.0,0.154736]
[1739388775094,0.00781978,96942.0,96941.0,0.002]
[1739388775296,0.00781978,96942.0,96940.0,0.154734]
[1739388775501,0.00781978,96942.0,96941.0,0.154733]
[1739388775702,0.00781978,96942.0,96940.0,0.002]
[1739388775912,0.00781978,96942.0,96927.0,0.0799]
[1739388776110,0.00781978,96942.0,96939.0,0.002]
[1739388776677,0.154735,96940.0,96939.0,0.002]
[1739388777779,0.154735,96940.0,96933.0,0.00022365]
[1739388778159,0.00771328,96941.0,96933.0,0.00022365]
[1739388778364,0.00771328,96940.0,96936.0,0.15474]
[1739388778588,0.00771328,96940.0,96939.0,0.002]
[1739388779081,0.00771328,96940.0,96933.0,0.20655065]
[1739388779284,0.00771328,96940.0,96939.0,0.154736]
[1739388779768,0.00771328,96940.0,96939.0,0.156736]
[1739388781069,0.00771328,96940.0,96939.0,0.154736]
[1739388781273,0.00771328,96940.0,96939.0,0.235836]
[1739388781587,0.00771328,96940.0,96939.0,0.236836]
[1739388781984,0.00771328,96940.0,96939.0,0.239836]
[1739388782263,0.00771328,96940.0,96939.0,0.157736]
[1739388782406,0.00771328,96940.0,96939.0,0.007]
[1739388782608,0.00771328,96940.0,96939.0,0.004]
[1739388783230,0.26495093,96940.0,96939.0,0.004]
[1739388783488,0.34285093,96940.0,96939.0,0.004]
[1739388784062,0.154744,96934.0,96933.0,0.00022365]
[1739388784265,0.25724765,96934.0,96933.0,0.00022365]
[1739388785373,0.2669021,96934.0,96933.0,0.00022365]
[1739388785765,0.27461538,96934.0,96933.0,0.00022365]
[1739388786345,0.29391555,96934.0,96933.0,0.00022365]
[1739388786921,0.29391555,96934.0,96933.0,0.00122365]
[1739388787425,0.29391555,96934.0,96933.0,0.00022365]
[1739388789580,0.13917155,96934.0,96933.0,0.00022365]
[1739388789783,0.29391555,96934.0,96933.0,0.00022365]
[1739388790190,0.0366679,96934.0,96933.0,0.00022365]
[1739388790391,0.1914119,96934.0,96933.0,0.00022365]
[1739388790933,0.29391555,96934.0,96933.0,0.00022365]
[1739388793556,0.35511538,96934.0,96933.0,0.00022365]
[1739388794628,0.39715527,96934.0,96933.0,0.00022365]
[1739388797093,0.41642618,96934.0,96933.0,0.00022365]
[1739388798022,0.41642618,96934.0,96933.0,0.00122365]
[1739388801832,0.32627173,96934.0,96933.0,0.00122365]
[1739388802051,0.31619637,96934.0,96933.0,0.00122365]
[1739388802258,0.21369272,96934.0,96933.0,0.00122365]
[1739388804048,0.21369272,96934.0,96933.0,0.00022365]
[1739388804465,0.21869272,96934.0,96933.0,0.00122365]
[1739388804864,0.21869272,96934.0,96933.0,0.00022365]
[1739388805076,0.21369272,96934.0,96933.0,0.00022365]
[1739388805280,0.21869272,96934.0,96933.0,0.00022365]
[1739388806117,0.21369272,96934.0,96933.0,0.00022365]
[1739388806524,0.27651856,96934.0,96933.0,0.00022365]
[1739388807517,0.28151856,96934.0,96933.0,0.00022365]
[1739388807931,0.27651856,96934.0,96933.0,0.00022365]
[1739388808114,0.35971856,96934.0,96933.0,0.00022365]
[1739388808316,0.36471856,96934.0,96933.0,0.00022365]
[1739388808515,0.40439637,96934.0,96933.0,0.00022365]
[1739388808735,0.45009637,96934.0,96933.0,0.00022365]
[1739388809400,0.44509637,96934.0,96933.0,0.00022365]
[1739388811007,0.47593938,96934.0,96933.0,0.00022365]
[1739388811222,0.48293938,96934.0,96933.0,0.00122365]
[1739388812444,0.154758,96925.0,96924.0,0.00022365]
[1739388812620,0.25726165,96925.0,96924.0,0.00022365]
[1739388812959,0.33996165,96925.0,96924.0,0.00022365]
[1739388813158,0.35130328,96925.0,96924.0,0.00022365]
[1739388813563,0.35230328,96925.0,96924.0,0.00022365]
[1739388814010,0.35130328,96925.0,96924.0,0.00022365]
[1739388814190,0.35730328,96925.0,96924.0,0.00122365]
[1739388814365,0.39108987,96925.0,96924.0,0.00096479]
[1739388814579,0.44121888,96925.0,96924.0,0.00096479]
[1739388814783,0.44121888,96925.0,96917.0,0.00022365]
[1739388814784,0.15477,96918.0,96917.0,0.00022365]
[1739388815602,0.19241925,96925.0,96917.0,0.00022365]
[1739388815958,0.00771448,96918.0,96917.0,0.00022365]
[1739388816267,0.16248448,96918.0,96917.0,0.00122365]
[1739388816385,0.16248448,96918.0,96917.0,0.00022365]
[1739388816849,0.1721276,96918.0,96917.0,0.00022365]
[1739388817425,0.27463125,96918.0,96917.0,0.00022365]
[1739388817644,0.29490216,96918.0,96917.0,0.00022365]
[1739388817839,0.29490216,96918.0,96917.0,0.00122365]
[1739388819383,0.29390216,96918.0,96917.0,0.00122365]
[1739388819584,0.32474488,96918.0,96917.0,0.00022365]
[1739388819793,0.32655952,96918.0,96917.0,0.00022365]
[1739388820208,0.3247388,96918.0,96917.0,0.00022365]
[1739388820622,0.3277388,96918.0,96917.0,0.00022365]
[1739388822774,0.29689608,96918.0,96917.0,0.00022365]
[1739388823200,0.29689608,96918.0,96917.0,0.08312365]
[1739388823201,0.03962243,96918.0,96917.0,0.08312365]
[1739388823369,0.03962243,96918.0,96917.0,0.23789465]
[1739388823589,0.03962243,96918.0,96917.0,0.08312365]
[1739388824046,0.03662243,96918.0,96917.0,0.08312365]
[1739388824401,0.03962243,96918.0,96917.0,0.08312365]
[1739388824805,0.19439243,96918.0,96917.0,0.00022365]
[1739388825009,0.29689608,96918.0,96917.0,0.00022365]
[1739388825225,0.29389608,96918.0,96917.0,0.00022365]
[1739388825649,0.29389608,96918.0,96917.0,0.00122365]
[1739388826195,0.29389608,96918.0,96917.0,0.00222365]
[1739388826864,0.19139243,96918.0,96917.0,0.00122365]
[1739388826982,0.03662243,96918.0,96917.0,0.00022365]
[1739388827395,0.03662243,96918.0,96917.0,0.04972365]
[1739388827853,0.03662243,96918.0,96917.0,0.04872365]
[1739388828072,0.03962243,96918.0,96917.0,0.04872365]
[1739388828528,0.03662243,96918.0,96917.0,0.04872365]
[1739388828933,0.03862243,96918.0,96917.0,0.04872365]
[1739388829612,0.03862243,96918.0,96917.0,0.20349465]
[1739388829985,0.01935152,96918.0,96917.0,0.20349465]
[1739388830153,0.01735152,96918.0,96917.0,0.20349465]
[1739388830578,0.01935152,96918.0,96917.0,0.20349465]
[1739388831076,0.01735152,96918.0,96917.0,0.20349465]
[1739388831298,0.01735152,96918.0,96917.0,0.20949465]
[1739388831998,0.01735152,96918.0,96917.0,0.20349465]
[1739388832202,0.01835152,96918.0,96917.0,0.20949465]
[1739388832561,0.01835152,96918.0,96917.0,0.21049465]
[1739388833104,0.01835152,96918.0,96917.0,0.20949465]
[1739388833463,0.01735152,96918.0,96917.0,0.20649465]
[1739388833667,0.01835152,96918.0,96917.0,0.21049465]
[1739388833886,0.01835152,96918.0,96917.0,0.21449465]
[1739388835501,0.01835152,96918.0,96917.0,0.29509465]
[1739388835908,0.01835152,96918.0,96917.0,0.30676952]
[1739388836805,0.01063704,96918.0,96917.0,0.30676952]
[1739388837345,0.001,96918.0,96917.0,0.30676952]
[1739388838504,0.01064081,96918.0,96917.0,0.30676952]
[1739388839552,0.01064081,96918.0,96917.0,0.29509465]
[1739388842091,0.01835221,96918.0,96917.0,0.29509465]
[1739388843392,0.01835221,96918.0,96917.0,0.5475983]
[1739388843824,0.01835221,96918.0,96917.0,0.7508113]
[1739388844641,0.01735221,96918.0,96917.0,0.7438113]
[1739388844837,0.01835221,96918.0,96917.0,0.7508113]
[1739388845267,0.001,96918.0,96917.0,0.7468113]
[1739388845703,0.001,96918.0,96917.0,0.7538113]
[1739388845909,0.001,96918.0,96917.0,0.7468113]
[1739388846108,0.001,96918.0,96917.0,0.7538113]
[1739388846229,0.00022387,96924.0,96923.0,0.387862]
[1739388846429,0.00022387,96924.0,96923.0,0.49036565]
[1739388846631,0.00022387,96924.0,96923.0,0.53786565]
[1739388847238,0.00022387,96924.0,96923.0,0.56086565]
[1739388848111,0.00022387,96924.0,96923.0,0.77907865]
[1739388849070,0.00022387,96924.0,96923.0,0.78607865]
[1739388849318,0.00022387,96924.0,96923.0,0.77107865]
[1739388849510,0.00022387,96924.0,96923.0,0.76407865]
[1739388849713,0.00122387,96924.0,96923.0,0.78607865]
[1739388849883,0.00122387,96924.0,96923.0,0.77907865]
[1739388850285,0.00022387,96924.0,96923.0,0.77107865]
[1739388850481,8.7e-07,96924.0,96923.0,1.27532965]
[1739388850719,0.00100087,96924.0,96923.0,0.77907865]